fUST/lending_fUST_20250609
["ID","MTS","AMOUNT","RATE_DAILY","PERIOD"]
[365124904,1749479440691,-3195.25059897,0.0002284,2]
[365124906,1749479440702,-156.9909581,0.00022849,2]
[365124908,1749479440711,-9078.6557171,0.0002295,7]
[365124910,1749479440722,-9078.6557171,0.0002295,7]
[365124912,1749479440732,-842.5625,0.0002295,7]
[365124914,1749479440742,-213.08899333,0.0002295,7]
[365124916,1749479440752,-655.61125434,0.00022969,8]
[365124918,1749479440762,-62823.99,0.00023,7]
[365124920,1749479440773,-250.94138988,0.00023,2]
[365124922,1749479440783,-440.0,0.00023013,4]
[365124924,1749479440793,-454.64,0.00023013,4]
[365124926,1749479440803,-440.0,0.00023013,4]
[365124928,1749479440813,-440.0,0.00023013,4]
[365124930,1749479440823,-440.0,0.00023013,4]
[365124932,1749479440833,-440.0,0.00023013,2]
[365124934,1749479440843,-440.0,0.00023013,4]
[365124937,1749479440853,-440.0,0.00023013,4]
[365124939,1749479440863,-3656.95,0.00023013,4]
[365124940,1749479440873,-850.15,0.00023013,4]
[365124941,1749479440884,-440.0,0.00023013,4]
[365124942,1749479440894,-4246.85,0.00023013,4]
[365124943,1749479440904,-2169.12,0.00023013,4]
[365124944,1749479440914,-440.0,0.00023013,4]
[365124945,1749479440925,-644.4,0.00023013,4]
[365124946,1749479440935,-440.0,0.00023013,4]
[365124947,1749479440945,-3348.37,0.00023013,4]
[365124948,1749479440955,-877.17,0.00023013,4]
[365124949,1749479440967,-473.13,0.00023013,4]
[365124950,1749479440979,-3733.91,0.00023013,4]
[365124951,1749479440990,-440.0,0.00023013,4]
[365124952,1749479441000,-662.26,0.00023013,4]
[365124953,1749479441010,-440.0,0.00023013,4]
[365124954,1749479441020,-440.0,0.00023013,4]
[365124955,1749479441029,-1460.01,0.00023013,4]
[365124956,1749479441039,-1025.21,0.00023013,4]
[365124957,1749479441050,-432.43854041,0.00023013,4]
[365124958,1749479441062,-440.0,0.00023013,4]
[365124959,1749479441072,-523.85,0.00023013,4]
[365124960,1749479441083,-1528.38,0.00023013,4]
[365124961,1749479441093,-440.0,0.00023013,4]
[365124962,1749479441102,-698.89,0.00023013,4]
[365124964,1749479441112,-440.0,0.00023013,4]
[365124965,1749479441121,-609.31,0.00023013,4]
[365124967,1749479441130,-440.0,0.00023013,4]
[365124969,1749479441140,-1706.37,0.00023013,4]
[365124970,1749479441150,-440.0,0.00023013,4]
[365124973,1749479441159,-644.99,0.00023013,4]
[365124974,1749479441170,-1576.12,0.00023013,4]
[365124976,1749479441179,-440.0,0.00023013,4]
[365124978,1749479441190,-467.37,0.00023013,4]
[365124980,1749479441200,-691.55,0.00023013,4]
[365124983,1749479441210,-606.41,0.00023013,4]
[365124985,1749479441221,-963.66,0.00023013,4]
[365124986,1749479441231,-861.18,0.00023013,4]
[365124989,1749479441241,-440.0,0.00023013,4]
[365124991,1749479441250,-7116.21,0.00023013,4]
[365124992,1749479441260,-484.96,0.00023013,4]
[365124994,1749479441270,-1635.73,0.00023013,4]
[365124996,1749479441280,-3160.19,0.00023013,4]
[365124998,1749479441289,-703.47,0.00023013,4]
[365125000,1749479441299,-640.56,0.00023013,4]
[365125003,1749479441309,-440.0,0.00023013,4]
[365125004,1749479441319,-1015.87,0.00023013,4]
[365125007,1749479441329,-1574.75,0.00023013,4]
[365125009,1749479441338,-3328.02,0.00023013,4]
[365125011,1749479441347,-440.0,0.00023013,4]
[365125013,1749479441357,-440.0,0.00023013,4]
[365125015,1749479441367,-638.75,0.00023013,4]
[365125017,1749479441376,-153.0,0.00023014,2]
[365125019,1749479441386,-655.61125434,0.00023107,8]
[365125021,1749479441396,-274.43309197,0.00023132,2]
[365125032,1749479441527,-156.9909581,0.00023151,2]
[365125033,1749479441538,-156.9909581,0.00023151,2]
[365125034,1749479441548,-156.9909581,0.00023151,2]
[365125035,1749479441558,-655.61125434,0.00023245,8]
[365125036,1749479441568,-440.0,0.00023287,4]
[365125037,1749479441577,-454.64,0.00023287,4]
[365125038,1749479441588,-440.0,0.00023287,4]
[365125039,1749479441598,-440.0,0.00023287,4]
[365125040,1749479441608,-440.0,0.00023287,4]
[365125041,1749479441618,-440.0,0.00023287,2]
[365125042,1749479441627,-440.0,0.00023287,4]
[365125043,1749479441646,-440.0,0.00023287,4]
[365125044,1749479441657,-3656.95,0.00023287,4]
[365125045,1749479441667,-850.15,0.00023287,4]
[365125046,1749479441677,-440.0,0.00023287,4]
[365125047,1749479441688,-4246.85,0.00023287,4]
[365125048,1749479441698,-2169.12,0.00023287,4]
[365125049,1749479441708,-440.0,0.00023287,4]
[365125050,1749479441719,-644.4,0.00023287,4]
[365125051,1749479441730,-440.0,0.00023287,4]
[365125052,1749479441740,-3348.37,0.00023287,4]
[365125053,1749479441750,-877.17,0.00023287,4]
[365125054,1749479441761,-473.13,0.00023287,4]
[365125055,1749479441771,-3733.91,0.00023287,4]
[365125056,1749479441782,-440.0,0.00023287,4]
[365125057,1749479441791,-662.26,0.00023287,4]
[365125058,1749479441801,-440.0,0.00023287,4]
[365125059,1749479441812,-440.0,0.00023287,4]
[365125060,1749479441822,-1460.01,0.00023287,4]
[365125061,1749479441832,-1025.21,0.00023287,4]
[365125062,1749479441842,-440.0,0.00023287,4]
[365125063,1749479441852,-523.85,0.00023287,4]
[365125064,1749479441863,-1528.38,0.00023287,4]
[365125065,1749479441874,-440.0,0.00023287,4]
[365125066,1749479441884,-698.89,0.00023287,4]
[365125067,1749479441894,-440.0,0.00023287,4]
[365125068,1749479441904,-609.31,0.00023287,4]
[365125069,1749479441915,-440.0,0.00023287,4]
[365125070,1749479441926,-1706.37,0.00023287,4]
[365125071,1749479441936,-644.99,0.00023287,4]
[365125072,1749479441946,-440.0,0.00023287,4]
[365125073,1749479441956,-1576.12,0.00023287,4]
[365125074,1749479441967,-440.0,0.00023287,4]
[365125075,1749479441977,-467.37,0.00023287,4]
[365125076,1749479441987,-691.55,0.00023287,4]
[365125077,1749479441998,-606.41,0.00023287,4]
[365125078,1749479442008,-963.66,0.00023287,4]
[365125079,1749479442018,-861.18,0.00023287,4]
[365125080,1749479442028,-440.0,0.00023287,4]
[365125081,1749479442038,-7116.21,0.00023287,4]
[365125082,1749479442048,-484.96,0.00023287,4]
[365125083,1749479442058,-1635.73,0.00023287,4]
[365125084,1749479442069,-3160.19,0.00023287,4]
[365125085,1749479442079,-703.47,0.00023287,4]
[365125086,1749479442089,-640.56,0.00023287,4]
[365125087,1749479442100,-440.0,0.00023287,4]
[365125088,1749479442110,-1015.87,0.00023287,4]
[365125089,1749479442120,-1574.75,0.00023287,4]
[365125090,1749479442130,-3328.02,0.00023287,4]
[365125091,1749479442140,-440.0,0.00023287,4]
[365125092,1749479442150,-440.0,0.00023287,4]
[365125093,1749479442160,-638.75,0.00023287,4]
[365125094,1749479442169,-164.354,0.00023288,7]
[365125095,1749479442179,-655.61125434,0.00023383,9]
[365125096,1749479442189,-273.4,0.000234,2]
[365125097,1749479442198,-215.0738,0.00023491,2]
[365125098,1749479442208,-650.61,0.000235,7]
[365125099,1749479442218,-274.43309197,0.00023516,2]
[365125100,1749479442227,-628.675124,0.00023519,3]
[365125101,1749479442237,-655.61125434,0.00023521,9]
[365125102,1749479442245,-440.0,0.00023561,4]
[365125103,1749479442255,-454.64,0.00023561,4]
[365125104,1749479442264,-440.0,0.00023561,4]
[365125105,1749479442273,-440.0,0.00023561,4]
[365125106,1749479442283,-440.0,0.00023561,4]
[365125107,1749479442292,-440.0,0.00023561,2]
[365125108,1749479442301,-440.0,0.00023561,4]
[365125109,1749479442311,-440.0,0.00023561,4]
[365125110,1749479442320,-3656.95,0.00023561,4]
[365125111,1749479442329,-850.15,0.00023561,4]
[365125112,1749479442339,-440.0,0.00023561,4]
[365125113,1749479442348,-4246.85,0.00023561,4]
[365125114,1749479442357,-2169.12,0.00023561,4]
[365125115,1749479442366,-440.0,0.00023561,4]
[365125116,1749479442376,-644.4,0.00023561,4]
[365125118,1749479442385,-440.0,0.00023561,4]
[365125120,1749479442394,-3348.37,0.00023561,4]
[365125122,1749479442404,-877.17,0.00023561,4]
[365125124,1749479442417,-473.13,0.00023561,4]
[365125126,1749479442426,-3733.91,0.00023561,4]
[365125128,1749479442435,-440.0,0.00023561,4]
[365125130,1749479442445,-662.26,0.00023561,4]
[365125132,1749479442458,-440.0,0.00023561,4]
[365125134,1749479442468,-440.0,0.00023561,4]
[365125136,1749479442478,-1460.01,0.00023561,4]
[365125138,1749479442489,-1025.21,0.00023561,4]
[365125140,1749479442499,-440.0,0.00023561,4]
[365125142,1749479442509,-523.85,0.00023561,4]
[365125144,1749479442520,-1528.38,0.00023561,4]
[365125146,1749479442529,-440.0,0.00023561,4]
[365125147,1749479442539,-698.89,0.00023561,4]
[365125148,1749479442549,-440.0,0.00023561,4]
[365125149,1749479442559,-609.31,0.00023561,4]
[365125151,1749479442568,-440.0,0.00023561,4]
[365125153,1749479442579,-1706.37,0.00023561,4]
[365125154,1749479442589,-644.99,0.00023561,4]
[365125155,1749479442598,-440.0,0.00023561,4]
[365125156,1749479442608,-1576.12,0.00023561,4]
[365125157,1749479442618,-440.0,0.00023561,4]
[365125158,1749479442627,-467.37,0.00023561,4]
[365125159,1749479442637,-691.55,0.00023561,4]
[365125160,1749479442647,-200.0,0.00023561,4]
[365125161,1749479442656,-200.0,0.00023561,4]
[365125162,1749479442666,-200.0,0.00023561,4]
[365125163,1749479442675,-200.0,0.00023561,4]
[365125164,1749479442685,-200.0,0.00023561,4]
[365125165,1749479442694,-200.0,0.00023561,4]
[365125166,1749479442703,-200.0,0.00023561,4]
[365125167,1749479442713,-606.41,0.00023561,4]
[365125168,1749479442723,-963.66,0.00023561,4]
[365125169,1749479442733,-861.18,0.00023561,4]
[365125170,1749479442743,-534.6,0.00023561,4]
[365125171,1749479442753,-7116.21,0.00023561,4]
[365125172,1749479442763,-484.96,0.00023561,4]
[365125173,1749479442772,-1635.73,0.00023561,4]
[365125174,1749479442783,-3160.19,0.00023561,4]
[365125175,1749479442792,-703.47,0.00023561,4]
[365125177,1749479442803,-640.56,0.00023561,4]
[365125179,1749479442813,-440.0,0.00023561,4]
[365125180,1749479442824,-1015.87,0.00023561,4]
[365125182,1749479442834,-1574.75,0.00023561,4]
[365125184,1749479442844,-3328.02,0.00023561,4]
[365125186,1749479442854,-440.0,0.00023561,4]
[365125188,1749479442864,-151.0,0.00023561,7]
[365125192,1749479442875,-151.0,0.00023561,7]
[365125194,1749479442885,-440.0,0.00023561,4]
[365125196,1749479442895,-655.61125434,0.00023659,9]
[365125198,1749479442905,-500.0,0.00023773,2]
[365125200,1749479442915,-500.0,0.00023773,2]
[365125202,1749479442924,-655.61125434,0.00023797,9]
[365125204,1749479442934,-2143.81,0.000238,7]
[365125206,1749479442944,-149323.90316098,0.000238,7]
[365125209,1749479442954,-3287.51920523,0.000238,3]
[365125212,1749479442964,-2160.0,0.00023817,2]
[365125214,1749479442975,-653.0,0.00023817,2]
[365125215,1749479442985,-405.0,0.00023817,2]
[365125216,1749479442995,-963.0,0.00023817,2]
[365125217,1749479443005,-440.0,0.00023835,4]
[365125218,1749479443014,-454.64,0.00023835,4]
[365125219,1749479443024,-440.0,0.00023835,4]
[365125220,1749479443034,-440.0,0.00023835,4]
[365125221,1749479443044,-440.0,0.00023835,4]
[365125223,1749479443054,-440.0,0.00023835,2]
[365125224,1749479443064,-440.0,0.00023835,4]
[365125225,1749479443073,-440.0,0.00023835,4]
[365125226,1749479443083,-3656.95,0.00023835,4]
[365125227,1749479443093,-850.15,0.00023835,4]
[365125228,1749479443103,-413.2271762,0.00023835,4]
[365125229,1749479443113,-4246.85,0.00023835,4]
[365125230,1749479443123,-2169.12,0.00023835,4]
[365125231,1749479443133,-589.34960142,0.00023835,4]
[365125232,1749479443142,-644.4,0.00023835,4]
[365125233,1749479443152,-440.0,0.00023835,4]
[365125234,1749479443162,-3348.37,0.00023835,4]
[365125235,1749479443172,-877.17,0.00023835,4]
[365125236,1749479443182,-473.13,0.00023835,4]
[365125237,1749479443192,-3733.91,0.00023835,4]
[365125238,1749479443202,-440.0,0.00023835,4]
[365125239,1749479443211,-662.26,0.00023835,4]
[365125240,1749479443221,-440.0,0.00023835,4]
[365125241,1749479443231,-440.0,0.00023835,4]
[365125242,1749479443240,-1460.01,0.00023835,4]
[365125243,1749479443250,-1025.21,0.00023835,4]
[365125244,1749479443259,-440.0,0.00023835,4]
[365125245,1749479443269,-523.85,0.00023835,4]
[365125246,1749479443279,-1528.38,0.00023835,4]
[365125247,1749479443289,-440.0,0.00023835,4]
[365125248,1749479443299,-698.89,0.00023835,4]
[365125249,1749479443308,-609.31,0.00023835,4]
[365125250,1749479443317,-440.0,0.00023835,4]
[365125251,1749479443328,-1706.37,0.00023835,4]
[365125252,1749479443337,-644.99,0.00023835,4]
[365125253,1749479443347,-440.0,0.00023835,4]
[365125254,1749479443357,-1576.12,0.00023835,4]
[365125255,1749479443367,-440.0,0.00023835,4]
[365125256,1749479443377,-467.37,0.00023835,4]
[365125257,1749479443386,-691.55,0.00023835,4]
[365125258,1749479443396,-200.0,0.00023835,4]
[365125259,1749479443408,-606.41,0.00023835,4]
[365125261,1749479443421,-963.66,0.00023835,4]
[365125262,1749479443431,-861.18,0.00023835,4]
[365125264,1749479443444,-7116.21,0.00023835,4]
[365125266,1749479443455,-484.96,0.00023835,4]
[365125267,1749479443465,-1635.73,0.00023835,4]
[365125268,1749479443474,-3160.19,0.00023835,4]
[365125270,1749479443485,-703.47,0.00023835,4]
[365125272,1749479443496,-640.56,0.00023835,4]
[365125275,1749479443507,-440.0,0.00023835,4]
[365125276,1749479443518,-1015.87,0.00023835,4]
[365125279,1749479443528,-1574.75,0.00023835,4]
[365125281,1749479443538,-3328.02,0.00023835,4]
[365125283,1749479443547,-440.0,0.00023835,4]
[365125285,1749479443556,-151.0,0.00023835,7]
[365125286,1749479443566,-151.0,0.00023835,7]
[365125287,1749479443576,-306.0,0.00023836,2]
[365125288,1749479443586,-274.43309197,0.00023899,2]
[365125289,1749479443596,-982.8879748,0.00023899,2]
[365125290,1749479443606,-2852.91,0.000239,2]
[365125291,1749479443615,-273.4,0.000239,2]
[365125292,1749479443624,-273.4,0.000239,2]
[365125293,1749479443633,-655.61125434,0.00023934,10]
[365125294,1749479443643,-982.8879748,0.00023972,2]
[365125295,1749479443653,-2365.52028439,0.00023972,2]
[365125296,1749479443662,-500.0,0.00023973,2]
[365125297,1749479443672,-500.0,0.00023973,2]
[365125298,1749479443682,-500.0,0.00023973,2]
[365125299,1749479443691,-500.91748917,0.00023973,2]
[365125300,1749479443704,-511.72404302,0.00023973,2]
[365125301,1749479443715,-500.0,0.00023973,2]
[365125302,1749479443725,-500.0,0.00023973,2]
[365125303,1749479443735,-292.35211332,0.00023973,2]
[365125304,1749479443746,-500.0,0.00023973,2]
[365125305,1749479443756,-151.0,0.00023973,7]
[365125306,1749479443767,-6975.86821871,0.00023998,2]
[365125307,1749479443776,-3870.76846573,0.00023999,2]
[365125308,1749479443786,-258495.7481696,0.00023999,15]
[365125309,1749479443806,-623746.25920142,0.00023999,15]
[365125310,1749479443817,-21457.992,0.00023999,15]
[365125311,1749479443966,-440.0,0.00021917,4]
[365125312,1749479443977,-455.43,0.00022191,4]
[365125313,1749479443986,-638.75,0.00023561,4]
[365125314,1749479443996,-440.0,0.00023835,4]
[365125315,1749479444006,-638.75,0.00023835,4]
[365125316,1749479444015,-6960.43592231,0.00023999,15]
[365125317,1749479444187,-29079.76156118,0.00023999,15]
[365125318,1749479444202,-697.96463264,0.00023999,15]
[365125319,1749479444215,-18045.89331603,0.00023999,15]
[365125329,1749479446585,-440.0,0.00021917,4]
[365125330,1749479446595,-1540.51,0.00021917,4]
[365125331,1749479446606,-1540.51,0.00022191,4]
[365125332,1749479446615,-1540.51,0.00022465,4]
[365125333,1749479446625,-1540.51,0.00022739,4]
[365125334,1749479446634,-1540.51,0.00023013,4]
[365125335,1749479446644,-1540.51,0.00023287,4]
[365125336,1749479446654,-9383.63317876,0.00023999,15]
[365125339,1749479766292,266.16034306,0.00015,2]
[365125340,1749479766315,766.83965694,0.00015,2]
[365125344,1749479978326,970.0,0.00024658,120]
[365125347,1749480097783,198.0,0.000178,2]
[365125348,1749480104978,198.0,0.000178,2]
[365125353,1749480555246,163.933217,0.00013699,2]
[365125375,1749480632447,-434.75,0.00020394,2]
[365125377,1749480632457,-250.8555093,0.00020805,2]
[365125378,1749480632467,-588.7692279,0.00020912,2]
[365125380,1749480632477,-19.2252628,0.00021,4]
[365125391,1749480632567,-178.7747372,0.00021,4]
[365125393,1749480632577,-198.0,0.00021,4]
[365125395,1749480632586,-222.5675608,0.00021,4]
[365125397,1749480632595,-441.41661675,0.00021194,2]
[365125399,1749480632607,-133.63926543,0.00021194,2]
[365125401,1749480632617,-184.07278224,0.00021817,2]
[365125403,1749480632626,-160.0,0.00021889,2]
[365125405,1749480632635,-809.21276528,0.000219,6]
[365125407,1749480632645,-295.27241504,0.00021916,2]
[365125409,1749480632654,-414.86127889,0.00021916,2]
[365125411,1749480632664,-500.0,0.00021916,2]
[365125413,1749480632674,-1000.0,0.00021916,2]
[365125415,1749480632683,-1000.0,0.00021916,2]
[365125417,1749480632692,-249.589,0.00021916,2]
[365125420,1749480632707,-440.0,0.00021917,4]
[365125422,1749480632720,-541.7,0.00021917,4]
[365125425,1749480632734,-440.0,0.00021917,4]
[365125427,1749480632747,-440.0,0.00021917,4]
[365125430,1749480632759,-440.0,0.00021917,4]
[365125432,1749480632770,-440.0,0.00021917,4]
[365125433,1749480632787,-500.0,0.00021917,4]
[365125434,1749480632800,-440.0,0.00021917,4]
[365125435,1749480632812,-440.0,0.00021917,4]
[365125436,1749480632826,-440.0,0.00021917,4]
[365125437,1749480632838,-440.0,0.00021917,4]
[365125438,1749480632852,-440.0,0.00021917,4]
[365125439,1749480632866,-440.0,0.00021917,4]
[365125440,1749480632878,-440.0,0.00021917,4]
[365125441,1749480632891,-440.0,0.00021917,4]
[365125442,1749480632904,-440.0,0.00021917,4]
[365125443,1749480632915,-440.0,0.00021917,4]
[365125444,1749480632926,-440.0,0.00021917,4]
[365125445,1749480632938,-440.0,0.00021917,4]
[365125446,1749480632950,-454.98474877,0.00021917,4]
[365125447,1749480632962,-440.0,0.00021917,4]
[365125448,1749480632974,-440.0,0.00021917,4]
[365125449,1749480632986,-440.0,0.00021917,4]
[365125450,1749480632998,-440.0,0.00021917,4]
[365125451,1749480633010,-440.0,0.00021917,4]
[365125452,1749480633021,-440.0,0.00021917,4]
[365125453,1749480633035,-430.0,0.00021917,4]
[365125454,1749480633047,-440.0,0.00021917,4]
[365125455,1749480633060,-440.0,0.00021917,4]
[365125456,1749480633071,-440.0,0.00021917,4]
[365125457,1749480633084,-440.0,0.00021917,2]
[365125458,1749480633097,-440.0,0.00021917,4]
[365125459,1749480633110,-440.0,0.00021917,4]
[365125460,1749480633124,-440.0,0.00021917,4]
[365125461,1749480633137,-440.0,0.00021917,4]
[365125462,1749480633150,-440.0,0.00021917,4]
[365125463,1749480633163,-440.0,0.00021917,4]
[365125464,1749480633176,-440.0,0.00021917,4]
[365125465,1749480633188,-440.0,0.00021917,4]
[365125466,1749480633200,-430.0,0.00021917,4]
[365125467,1749480633211,-440.0,0.00021917,4]
[365125468,1749480633222,-440.0,0.00021917,4]
[365125469,1749480633233,-440.0,0.00021917,4]
[365125470,1749480633245,-322.34906581,0.00021917,4]
[365125471,1749480633280,-117.65093419,0.00021917,4]
[365125472,1749480633293,-440.0,0.00021917,4]
[365125473,1749480633304,-468.98,0.00021917,4]
[365125474,1749480633316,-524.06645434,0.00021917,4]
[365125475,1749480633327,-440.0,0.00021917,4]
[365125476,1749480633338,-440.0,0.00021917,4]
[365125477,1749480633351,-440.0,0.00021917,4]
[365125478,1749480633364,-440.0,0.00021917,4]
[365125479,1749480633375,-263.007722,0.00021917,4]
[365125480,1749480633385,-439.41965538,0.00021917,4]
[365125481,1749480633397,-440.0,0.00021917,4]
[365125482,1749480633408,-440.0,0.00021917,4]
[365125483,1749480633420,-260.71566167,0.00021917,4]
[365125484,1749480633433,-440.0,0.00021917,4]
[365125485,1749480633445,-440.0,0.00021917,4]
[365125486,1749480633456,-440.0,0.00021917,4]
[365125487,1749480633468,-440.0,0.00021917,4]
[365125488,1749480633479,-440.0,0.00021917,4]
[365125489,1749480633492,-440.0,0.00021917,4]
[365125490,1749480633503,-440.0,0.00021917,4]
[365125491,1749480633515,-440.0,0.00021917,4]
[365125492,1749480633529,-440.0,0.00021917,4]
[365125493,1749480633541,-1049.83,0.00021917,4]
[365125494,1749480633552,-440.0,0.00021917,4]
[365125495,1749480633564,-440.0,0.00021917,4]
[365125496,1749480633577,-440.0,0.00021917,4]
[365125497,1749480633589,-480.62177314,0.00021917,4]
[365125498,1749480633601,-2095.3337343,0.00021917,4]
[365125514,1749480638502,-461.8462657,0.00021917,4]
[365125516,1749480638513,-410.0,0.00021917,4]
[365125518,1749480638522,-440.0,0.00021917,4]
[365125520,1749480638534,-440.0,0.00021917,4]
[365125522,1749480638544,-440.0,0.00021917,4]
[365125524,1749480638553,-585.85,0.00021917,4]
[365125526,1749480638563,-440.0,0.00021917,4]
[365125528,1749480638572,-440.0,0.00021917,4]
[365125530,1749480638582,-440.0,0.00021917,4]
[365125532,1749480638591,-441.51,0.00021917,4]
[365125534,1749480638601,-430.0,0.00021917,4]
[365125536,1749480638610,-440.0,0.00021917,4]
[365125538,1749480638620,-440.0,0.00021917,4]
[365125540,1749480638630,-2489.2,0.00021917,4]
[365125542,1749480638640,-440.0,0.00021917,4]
[365125544,1749480638650,-440.0,0.00021917,4]
[365125546,1749480638659,-612.32,0.00021917,4]
[365125548,1749480638669,-440.0,0.00021917,4]
[365125550,1749480638678,-440.0,0.00021917,4]
[365125552,1749480638687,-1155.38,0.00021917,4]
[365125554,1749480638697,-204.36756907,0.00021917,4]
[365125556,1749480638706,-440.0,0.00021917,4]
[365125558,1749480638715,-263.5129292,0.00021917,4]
[365125560,1749480638725,-440.0,0.00021917,4]
[365125562,1749480638736,-440.0,0.00021917,4]
[365125564,1749480638745,-440.0,0.00021917,4]
[365125566,1749480638754,-2654.83,0.00021917,4]
[365125568,1749480638764,-440.0,0.00021917,4]
[365125570,1749480638773,-683.48,0.00021917,4]
[365125572,1749480638787,-529.14,0.00021917,4]
[365125574,1749480638796,-1085.06,0.00021917,4]
[365125576,1749480638806,-440.0,0.00021917,4]
[365125578,1749480638815,-440.0,0.00021917,4]
[365125580,1749480638825,-380.0,0.00021917,4]
[365125582,1749480638834,-440.0,0.00021917,4]
[365125584,1749480638844,-448.33,0.00021917,4]
[365125586,1749480638853,-440.0,0.00021917,4]
[365125588,1749480638864,-440.0,0.00021917,4]
[365125591,1749480638874,-440.0,0.00021917,4]
[365125592,1749480638883,-440.0,0.00021917,4]
[365125595,1749480638893,-1137.58,0.00021917,4]
[365125597,1749480638902,-1050.74,0.00021917,4]
[365125598,1749480638911,-440.0,0.00021917,4]
[365125600,1749480638920,-440.0,0.00021917,4]
[365125603,1749480638929,-660.77,0.00021917,4]
[365125605,1749480638939,-440.0,0.00021917,4]
[365125607,1749480638948,-479.37,0.00021917,4]
[365125609,1749480638957,-440.0,0.00021917,4]
[365125610,1749480638966,-420.0,0.00021917,4]
[365125612,1749480638975,-440.0,0.00021917,4]
[365125615,1749480638985,-1266.2,0.00021917,4]
[365125617,1749480638994,-210.95651065,0.00021917,4]
[365125619,1749480639004,-440.0,0.00021917,4]
[365125621,1749480639014,-440.0,0.00021917,4]
[365125623,1749480639023,-4909.14,0.00021917,4]
[365125625,1749480639033,-574.12,0.00021917,4]
[365125627,1749480639043,-430.0,0.00021917,4]
[365125629,1749480639053,-641.05,0.00021917,4]
[365125631,1749480639062,-440.0,0.00021917,4]
[365125633,1749480639071,-1484.58,0.00021917,4]
[365125635,1749480639080,-2217.56,0.00021917,4]
[365125637,1749480639090,-2313.8,0.00021917,4]
[365125639,1749480639099,-440.0,0.00021917,4]
[365125641,1749480639109,-449.44,0.00021917,4]
[365125643,1749480639118,-440.0,0.00021917,4]
[365125645,1749480639128,-198.0,0.00022,5]
[365125647,1749480639138,-198.0,0.00022,5]
[365125649,1749480639147,-809.2127652,0.00022003,6]
[365125651,1749480639157,-809.2127652,0.00022107,6]
[365125653,1749480639166,-207.4,0.00022122,2]
[365125655,1749480639176,-151.0,0.00022136,2]
[365125657,1749480639185,-151.0,0.00022136,2]
[365125659,1749480639195,-158.75502478,0.00022136,2]
[365125661,1749480639205,-500.0,0.00022136,2]
[365125663,1749480639215,-500.0,0.00022163,2]
[365125665,1749480639224,-383.78346248,0.00022164,2]
[365125667,1749480639233,-500.0,0.00022191,2]
[365125669,1749480639243,-500.0,0.00022191,4]
[365125671,1749480639253,-440.0,0.00022191,4]
[365125673,1749480639263,-440.0,0.00022191,4]
[365125675,1749480639273,-158.26369834,0.00022191,4]
[365125677,1749480639283,-440.0,0.00022191,4]
[365125679,1749480639292,-440.0,0.00022191,4]
[365125681,1749480639302,-440.0,0.00022191,4]
[365125683,1749480639313,-440.0,0.00022191,4]
[365125685,1749480639322,-440.0,0.00022191,4]
[365125687,1749480639332,-440.0,0.00022191,2]
[365125689,1749480639342,-440.0,0.00022191,4]